fUSD/lending_fUSD_20240327
["ID","MTS","AMOUNT","RATE_DAILY","PERIOD"]
[320770860,1711552279208,-151.0,0.0005452,120]
[320770861,1711552279220,-500.0,0.0005452,120]
[320770862,1711552279229,-742.17,0.0005452,120]
[320770863,1711552279239,-500.0,0.0005452,120]
[320770864,1711552279248,-500.0,0.0005452,120]
[320770865,1711552279258,-151.0,0.0005452,120]
[320770866,1711552279267,-500.0,0.0005452,120]
[320770867,1711552279277,-500.0,0.0005452,120]
[320770868,1711552279286,-864.87,0.0005452,120]
[320770869,1711552279295,-500.0,0.0005452,120]
[320770870,1711552279304,-500.0,0.0005452,120]
[320770871,1711552279313,-500.0,0.0005452,120]
[320770872,1711552279323,-1784.46,0.0005452,120]
[320770873,1711552279332,-1081.95,0.0005452,120]
[320770874,1711552279341,-536.84,0.0005452,120]
[320770875,1711552279355,-500.0,0.0005452,120]
[320770876,1711552279364,-500.0,0.0005452,120]
[320770877,1711552279375,-504.39504529,0.0005452,120]
[320770878,1711552279384,-501.14168265,0.0005452,120]
[320770879,1711552279394,-1437.24,0.0005452,120]
[320770880,1711552279403,-500.0,0.0005452,120]
[320770881,1711552279413,-500.0,0.0005452,120]
[320770882,1711552279423,-547.36,0.0005452,120]
[320770883,1711552279432,-500.0,0.0005452,120]
[320770884,1711552279442,-500.0,0.0005452,120]
[320770885,1711552279451,-657.32,0.0005452,120]
[320770886,1711552279461,-725.74,0.0005452,120]
[320770887,1711552279470,-151.0,0.0005452,120]
[320770888,1711552279479,-500.0,0.0005452,120]
[320770889,1711552279488,-500.0,0.0005452,120]
[320770890,1711552279497,-784.02,0.0005452,120]
[320770891,1711552279506,-500.0,0.0005452,120]
[320770892,1711552279515,-682.88,0.0005452,60]
[320770893,1711552279525,-253.46517274,0.0005452,120]
[320770894,1711552279534,-500.0,0.0005452,120]
[320770895,1711552279544,-500.0,0.0005452,120]
[320770896,1711552279553,-184.63941369,0.0005452,120]
[320770897,1711552279563,-500.0,0.0005452,120]
[320770898,1711552279573,-500.0,0.0005452,120]
[320770899,1711552279582,-500.0,0.0005452,120]
[320770900,1711552279591,-1226.26,0.0005452,120]
[320770901,1711552279602,-506.83725371,0.0005452,120]
[320770902,1711552279612,-500.0,0.0005452,120]
[320770903,1711552279621,-151.0,0.0005452,120]
[320770904,1711552279631,-499.85141206,0.0005452,120]
[320770905,1711552279640,-642.33,0.0005452,120]
[320770906,1711552279649,-151.0,0.0005452,120]
[320770907,1711552279659,-528.21,0.0005452,120]
[320770908,1711552279670,-816.2,0.0005452,120]
[320770909,1711552279679,-500.0,0.0005452,120]
[320770910,1711552279688,-542.25319022,0.0005452,120]
[320770911,1711552279697,-500.0,0.0005452,120]
[320770912,1711552279706,-501.36,0.0005452,120]
[320770913,1711552279715,-500.0,0.0005452,2]
[320770914,1711552279725,-500.0,0.0005452,120]
[320770915,1711552279734,-500.0,0.0005452,120]
[320770916,1711552279744,-504.07288316,0.0005452,120]
[320770917,1711552279753,-500.0,0.0005452,120]
[320770918,1711552279763,-500.0,0.0005452,120]
[320770919,1711552279772,-556.33,0.0005452,120]
[320770920,1711552279782,-2170.99,0.0005452,120]
[320770921,1711552279791,-535.39,0.0005452,120]
[320770922,1711552279800,-500.0,0.0005452,120]
[320770923,1711552279810,-500.0,0.0005452,120]
[320770924,1711552279819,-406.511796,0.0005452,120]
[320770925,1711552279828,-1871.67,0.0005452,120]
[320770926,1711552279838,-1822.98,0.0005452,120]
[320770927,1711552279848,-500.0,0.0005452,120]
[320770928,1711552279858,-151.0,0.0005452,120]
[320770929,1711552279867,-500.0,0.0005452,120]
[320770930,1711552279877,-500.0,0.0005452,120]
[320770931,1711552279887,-406.511796,0.0005452,120]
[320770932,1711552279896,-500.0,0.0005452,120]
[320770933,1711552279905,-500.0,0.0005452,120]
[320770934,1711552279915,-500.0,0.0005452,120]
[320770935,1711552279925,-500.0,0.0005452,120]
[320770936,1711552279935,-500.0,0.0005452,120]
[320770937,1711552279945,-500.0,0.0005452,120]
[320770938,1711552279955,-311.65070517,0.0005452,120]
[320770939,1711552279964,-500.0,0.0005452,120]
[320770940,1711552279973,-500.0,0.0005452,120]
[320770941,1711552279983,-500.0,0.0005452,120]
[320770942,1711552279993,-500.0,0.0005452,120]
[320770943,1711552280002,-504.27072794,0.0005452,120]
[320770944,1711552280012,-500.0,0.0005452,120]
[320770945,1711552280023,-500.0,0.0005452,120]
[320770946,1711552280033,-500.0,0.0005452,120]
[320770947,1711552280042,-500.0,0.0005452,120]
[320770948,1711552280052,-500.0,0.0005452,120]
[320770949,1711552280061,-500.0,0.0005452,120]
[320770950,1711552280071,-500.0,0.0005452,120]
[320770951,1711552280080,-500.0,0.0005452,120]
[320770952,1711552280089,-500.0,0.0005452,120]
[320770953,1711552280100,-1000.0,0.0005452,120]
[320770954,1711552280110,-1073.97,0.0005452,120]
[320770955,1711552280119,-500.0,0.0005452,120]
[320770956,1711552280129,-601.646655,0.0005452,120]
[320770957,1711552280139,-526.05,0.0005452,120]
[320770958,1711552280149,-1103.15,0.0005452,120]
[320770959,1711552280160,-500.0,0.0005452,120]
[320770960,1711552280170,-958.82,0.0005452,120]
[320770961,1711552280179,-544.99,0.0005452,120]
[320770962,1711552280189,-469.446104,0.0005452,120]
[320770963,1711552280199,-601.646655,0.0005452,120]
[320770964,1711552280209,-500.0,0.0005452,120]
[320770965,1711552280219,-500.0,0.0005452,120]
[320770966,1711552280228,-981.66,0.0005452,120]
[320770967,1711552280239,-500.0,0.0005452,120]
[320770968,1711552280248,-151.0,0.0005452,120]
[320770969,1711552280257,-504.32459999,0.0005452,120]
[320770970,1711552280267,-469.446104,0.0005452,120]
[320770971,1711552280277,-500.0,0.0005452,120]
[320770972,1711552280287,-151.0,0.0005452,120]
[320770973,1711552280296,-382.776007,0.0005452,120]
[320770974,1711552280305,-500.0,0.0005452,120]
[320770975,1711552280315,-500.0,0.0005452,120]
[320770976,1711552280325,-500.0,0.0005452,120]
[320770977,1711552280334,-475.88378528,0.0005452,120]
[320770978,1711552280345,-500.0,0.0005452,120]
[320770979,1711552280354,-500.0,0.0005452,120]
[320770980,1711552280362,-500.0,0.0005452,120]
[320770981,1711552280371,-382.776007,0.0005452,120]
[320770982,1711552280381,-500.0,0.0005452,120]
[320770983,1711552280390,-500.0,0.0005452,120]
[320770984,1711552280400,-500.0,0.0005452,120]
[320770985,1711552280410,-500.0,0.0005452,120]
[320770986,1711552280419,-500.0,0.0005452,120]
[320770987,1711552280429,-500.0,0.0005452,120]
[320770988,1711552280439,-500.0,0.0005452,120]
[320770989,1711552280450,-503.94611546,0.0005452,120]
[320770990,1711552280460,-500.0,0.0005452,120]
[320770991,1711552280470,-1261.44,0.0005452,120]
[320770992,1711552280480,-500.0,0.0005452,120]
[320770993,1711552280490,-243.855652,0.0005452,120]
[320770994,1711552280499,-512.56489989,0.0005452,120]
[320770995,1711552280508,-500.0,0.0005452,120]
[320770996,1711552280517,-506.41426,0.0005452,120]
[320770997,1711552280527,-1234.9,0.0005452,120]
[320770998,1711552280536,-500.0,0.0005452,120]
[320770999,1711552280546,-500.0,0.0005452,120]
[320771000,1711552280555,-819.15,0.0005452,120]
[320771001,1711552280565,-500.0,0.0005452,120]
[320771002,1711552280576,-503.65948432,0.0005452,120]
[320771003,1711552280586,-500.0,0.0005452,120]
[320771004,1711552280597,-243.855652,0.0005452,120]
[320771005,1711552280606,-500.0,0.0005452,120]
[320771006,1711552280616,-500.0,0.0005452,120]
[320771007,1711552280626,-502.43343308,0.0005452,120]
[320771008,1711552280635,-500.0,0.0005452,120]
[320771009,1711552280644,-500.0,0.0005452,120]
[320771010,1711552280654,-937.899088,0.0005452,120]
[320771011,1711552280663,-500.0,0.0005452,120]
[320771012,1711552280673,-500.0,0.0005452,120]
[320771013,1711552280683,-500.0,0.0005452,120]
[320771014,1711552280692,-500.0,0.0005452,120]
[320771015,1711552280702,-500.0,0.0005452,120]
[320771016,1711552280711,-500.0,0.0005452,120]
[320771017,1711552280720,-616.83,0.0005452,120]
[320771018,1711552280730,-500.0,0.0005452,120]
[320771019,1711552280740,-1682.28,0.0005452,120]
[320771020,1711552280750,-500.0,0.0005452,120]
[320771021,1711552280759,-505.05003423,0.0005452,120]
[320771022,1711552280768,-500.00815272,0.0005452,120]
[320771023,1711552280777,-937.899088,0.0005452,120]
[320771024,1711552280786,-151.0,0.0005452,7]
[320771025,1711552280795,-500.0,0.0005452,120]
[320771026,1711552280804,-978.04,0.0005452,30]
[320771027,1711552280813,-500.0,0.0005452,120]
[320771028,1711552280822,-500.0,0.0005452,120]
[320771029,1711552280832,-500.0,0.0005452,120]
[320771030,1711552280841,-500.0,0.0005452,120]
[320771031,1711552280852,-500.0,0.0005452,120]
[320771032,1711552280861,-500.0,0.0005452,120]
[320771033,1711552280870,-420.00674818,0.0005452,7]
[320771034,1711552280879,-500.0,0.0005452,120]
[320771035,1711552280888,-444.8718576,0.0005452,120]
[320771036,1711552281030,-500.0,0.0005452,120]
[320771037,1711552281040,-500.0,0.0005452,120]
[320771038,1711552281050,-500.0,0.0005452,120]
[320771039,1711552281060,-509.609659,0.0005452,120]
[320771040,1711552281071,-1500.0,0.0005452,2]
[320771041,1711552281081,-500.0,0.0005452,120]
[320771042,1711552281090,-615.29,0.0005452,120]
[320771043,1711552281102,-500.0,0.0005452,120]
[320771044,1711552281112,-3944.07,0.0005452,120]
[320771045,1711552281121,-500.0,0.0005452,120]
[320771046,1711552281131,-500.0,0.0005452,120]
[320771047,1711552281140,-500.0,0.0005452,120]
[320771048,1711552281151,-756.7,0.0005452,120]
[320771049,1711552281162,-500.0,0.0005452,120]
[320771050,1711552281171,-500.0,0.0005452,120]
[320771051,1711552281181,-151.0,0.0005452,120]
[320771052,1711552281191,-500.0,0.0005452,120]
[320771053,1711552281200,-500.0,0.0005452,120]
[320771054,1711552281209,-500.0,0.0005452,120]
[320771055,1711552281218,-500.0,0.0005452,120]
[320771056,1711552281228,-757.74,0.0005452,120]
[320771057,1711552281238,-500.0,0.0005452,120]
[320771058,1711552281247,-500.0,0.0005452,120]
[320771059,1711552281257,-505.2678033,0.0005452,120]
[320771060,1711552281267,-732.25,0.0005452,120]
[320771061,1711552281276,-500.0,0.0005452,120]
[320771062,1711552281286,-500.0,0.0005452,120]
[320771063,1711552281295,-500.0,0.0005452,120]
[320771064,1711552281304,-607.04923502,0.0005452,120]
[320771065,1711552281313,-503.89959253,0.0005452,120]
[320771066,1711552281322,-1663.15,0.0005452,120]
[320771067,1711552281332,-500.0,0.0005452,120]
[320771068,1711552281342,-500.0,0.0005452,120]
[320771069,1711552281353,-151.0,0.0005452,120]
[320771070,1711552281362,-500.0,0.0005452,120]
[320771071,1711552281371,-151.0,0.0005452,120]
[320771072,1711552281381,-500.0,0.0005452,120]
[320771073,1711552281390,-610.47,0.0005452,120]
[320771074,1711552281399,-500.0,0.0005452,120]
[320771075,1711552281408,-500.0,0.0005452,120]
[320771076,1711552281418,-500.0,0.0005452,120]
[320771077,1711552281427,-1953.73,0.0005452,120]
[320771078,1711552281436,-1065.51,0.0005452,120]
[320771079,1711552281446,-500.0,0.0005452,120]
[320771080,1711552281455,-501.32994346,0.0005452,120]
[320771081,1711552281464,-500.0,0.0005452,120]
[320771082,1711552281473,-500.0,0.0005452,120]
[320771083,1711552281482,-500.0,0.0005452,120]
[320771084,1711552281492,-500.0,0.0005452,120]
[320771085,1711552281501,-500.0,0.0005452,120]
[320771086,1711552281510,-1812.7,0.0005452,120]
[320771087,1711552281520,-500.0,0.0005452,120]
[320771088,1711552281530,-644.99,0.0005452,120]
[320771089,1711552281539,-500.0,0.0005452,120]
[320771090,1711552281549,-500.0,0.0005452,120]
[320771091,1711552281558,-500.0,0.0005452,120]
[320771092,1711552281568,-500.0,0.0005452,120]
[320771093,1711552281578,-506.4514468,0.0005452,120]
[320771094,1711552281588,-500.0,0.0005452,120]
[320771095,1711552281600,-504.51512474,0.0005452,120]
[320771096,1711552281610,-1000.2,0.0005452,120]
[320771097,1711552281620,-1119.79,0.0005452,120]
[320771098,1711552281630,-500.0,0.0005452,120]
[320771099,1711552281640,-500.0,0.0005452,120]
[320771100,1711552281649,-500.0,0.0005452,120]
[320771101,1711552281660,-500.0,0.0005452,120]
[320771102,1711552281670,-500.0,0.0005452,120]
[320771103,1711552281680,-506.99954932,0.0005452,120]
[320771104,1711552281691,-500.0,0.0005452,120]
[320771105,1711552281701,-500.0,0.0005452,120]
[320771106,1711552281712,-509.35949904,0.0005452,120]
[320771107,1711552281722,-500.0,0.0005452,120]
[320771108,1711552281732,-1863.91,0.0005452,120]
[320771109,1711552281742,-614.78,0.0005452,120]
[320771110,1711552281752,-500.0,0.0005452,120]
[320771111,1711552281762,-500.0,0.0005452,120]
[320771112,1711552281771,-500.0,0.0005452,120]
[320771113,1711552281781,-500.0,0.0005452,120]
[320771114,1711552281791,-500.0,0.0005452,120]
[320771115,1711552281800,-151.0,0.0005452,120]
[320771116,1711552281810,-500.0,0.0005452,120]
[320771117,1711552281819,-500.0,0.0005452,120]
[320771118,1711552281829,-500.0,0.0005452,120]
[320771119,1711552281838,-151.0,0.0005452,120]
[320771120,1711552281855,-472.62325643,0.0005452,120]
[320771121,1711552281864,-504.04,0.0005452,120]
[320771122,1711552281873,-408.45774622,0.0005452,120]
[320771123,1711552281882,-500.0,0.0005452,120]
[320771124,1711552281891,-500.0,0.0005452,120]
[320771125,1711552281900,-500.0,0.0005452,120]
[320771126,1711552281910,-500.0,0.0005452,120]
[320771127,1711552281919,-500.0,0.0005452,120]
[320771128,1711552281929,-500.0,0.0005452,120]
[320771129,1711552281939,-759.19,0.0005452,120]
[320771130,1711552281960,-1208.59,0.0005452,120]
[320771131,1711552281975,-500.0,0.0005452,120]
[320771132,1711552281993,-500.0,0.0005452,120]
[320771133,1711552282012,-500.0,0.0005452,120]
[320771134,1711552282027,-500.0,0.0005452,120]
[320771135,1711552282043,-500.0,0.0005452,120]
[320771136,1711552282060,-500.0,0.0005452,120]
[320771137,1711552282077,-921.92,0.0005452,120]
[320771138,1711552282094,-500.0,0.0005452,120]
[320771139,1711552282112,-500.0,0.0005452,120]
[320771140,1711552282131,-500.0,0.0005452,120]
[320771141,1711552282151,-500.0,0.0005452,120]
[320771142,1711552282163,-500.0,0.0005452,120]
[320771143,1711552282179,-500.0,0.0005452,120]
[320771144,1711552282195,-500.0,0.0005452,120]
[320771145,1711552282209,-500.0,0.0005452,120]
[320771146,1711552282224,-1125.7,0.0005452,120]
[320771147,1711552282239,-500.0,0.0005452,120]
[320771148,1711552282253,-500.0,0.0005452,120]
[320771149,1711552282268,-500.0,0.0005452,120]
[320771150,1711552282283,-500.0,0.0005452,120]
[320771151,1711552282298,-500.0,0.0005452,120]
[320771152,1711552282312,-500.0,0.0005452,120]
[320771153,1711552282327,-500.0,0.0005452,120]
[320771154,1711552282342,-500.0,0.0005452,120]
[320771155,1711552282357,-500.0,0.0005452,120]
[320771156,1711552282371,-500.0,0.0005452,120]
[320771157,1711552282386,-500.0,0.0005452,120]
[320771158,1711552282401,-500.0,0.0005452,120]
[320771159,1711552282416,-500.0,0.0005452,120]
[320771160,1711552282430,-500.0,0.0005452,120]
[320771161,1711552282445,-503.64458343,0.0005452,120]
[320771162,1711552282460,-500.0,0.0005452,120]
[320771163,1711552282475,-500.0,0.0005452,120]
[320771164,1711552282490,-500.0,0.0005452,120]
[320771165,1711552282505,-500.0,0.0005452,120]
[320771166,1711552282520,-500.0,0.0005452,120]
[320771167,1711552282534,-516.15698908,0.0005452,120]
[320771168,1711552282549,-524.38,0.0005452,120]
[320771169,1711552282564,-500.0,0.0005452,120]
[320771170,1711552282579,-500.0,0.0005452,120]
[320771171,1711552282594,-500.0,0.0005452,120]
[320771172,1711552282610,-500.0,0.0005452,120]
[320771173,1711552282625,-660.314729,0.0005452,120]
[320771174,1711552282638,-500.0,0.0005452,120]
[320771175,1711552282657,-500.0,0.0005452,120]
[320771176,1711552282671,-500.0,0.0005452,120]
[320771177,1711552282687,-660.314729,0.0005452,120]
[320771178,1711552282701,-500.0,0.0005452,120]
[320771179,1711552282716,-500.0,0.0005452,120]
[320771180,1711552282731,-151.0,0.0005452,120]
[320771181,1711552282746,-500.0,0.0005452,120]
[320771182,1711552282760,-500.0,0.0005452,120]
[320771183,1711552282775,-500.0,0.0005452,120]
[320771184,1711552282790,-500.0,0.0005452,120]
[320771185,1711552282805,-500.0,0.0005452,120]
[320771186,1711552282818,-500.0,0.0005452,120]
[320771187,1711552282832,-579.65,0.0005452,120]
[320771188,1711552282847,-500.0,0.0005452,120]
[320771189,1711552282861,-1759.52,0.0005452,120]
[320771190,1711552282875,-504.96369503,0.0005452,120]
[320771191,1711552282891,-921.16,0.0005452,120]
[320771192,1711552282905,-151.0,0.0005452,120]
[320771193,1711552282920,-1973.77,0.0005452,120]
[320771194,1711552282935,-589.57,0.0005452,120]
[320771195,1711552282949,-500.0,0.0005452,120]
[320771196,1711552282963,-500.0,0.0005452,120]
[320771197,1711552282978,-500.0,0.0005452,120]
[320771198,1711552282993,-500.0,0.0005452,120]
[320771199,1711552283007,-500.0,0.0005452,120]
[320771200,1711552283021,-500.0,0.0005452,120]
[320771201,1711552283036,-500.0,0.0005452,120]
[320771202,1711552283051,-500.0,0.0005452,120]
[320771203,1711552283065,-500.0,0.0005452,120]
[320771204,1711552283080,-899.98,0.0005452,120]
[320771205,1711552283095,-500.0,0.0005452,120]
[320771206,1711552283110,-500.0,0.0005452,120]
[320771207,1711552283125,-911.1,0.0005452,120]
[320771208,1711552283139,-500.0,0.0005452,2]
[320771209,1711552283156,-500.0,0.0005452,120]
[320771210,1711552283171,-500.0,0.0005452,120]
[320771211,1711552283186,-503.17583911,0.0005452,120]
[320771212,1711552283202,-500.0,0.0005452,120]
[320771213,1711552283216,-500.0,0.0005452,120]
[320771214,1711552283232,-500.0,0.0005452,120]
[320771215,1711552283248,-784.99,0.0005452,120]
[320771216,1711552283263,-151.0,0.0005452,120]
[320771217,1711552283277,-500.0,0.0005452,120]
[320771218,1711552283293,-500.0,0.0005452,120]
[320771219,1711552283308,-151.0,0.0005452,120]
[320771220,1711552283323,-214.99651698,0.0005452,120]
[320771221,1711552283526,-500.0,0.0005452,120]
[320771222,1711552283539,-500.0,0.0005452,30]
[320771223,1711552283548,-500.0,0.0005452,120]
[320771224,1711552283559,-500.0,0.0005452,120]
[320771225,1711552283567,-500.0,0.0005452,120]
[320771226,1711552283577,-500.0,0.0005452,120]
[320771227,1711552283586,-500.0,0.0005452,120]
[320771228,1711552283595,-500.0,0.0005452,120]
[320771229,1711552283606,-500.0,0.0005452,120]
[320771230,1711552283615,-500.0,0.0005452,120]
[320771231,1711552283624,-500.0,0.0005452,120]
[320771232,1711552283633,-500.0,0.0005452,120]
[320771233,1711552283644,-502.2546344,0.0005452,120]
[320771234,1711552283654,-500.0,0.0005452,120]
[320771235,1711552283663,-500.0,0.0005452,120]
[320771236,1711552283673,-502.57191438,0.0005452,120]
[320771237,1711552283682,-500.0,0.0005452,120]
[320771238,1711552283691,-2648.97,0.0005452,120]
[320771239,1711552283701,-1149.32,0.0005452,120]
[320771240,1711552283710,-500.0,0.0005452,120]
[320771241,1711552283719,-500.0,0.0005452,120]
[320771242,1711552283729,-498.3,0.0005452,120]
[320771243,1711552283738,-272.911968,0.0005452,120]
[320771244,1711552283747,-500.0,0.0005452,120]
[320771245,1711552283756,-500.0,0.0005452,120]
[320771246,1711552283765,-500.0,0.0005452,120]
[320771247,1711552283774,-500.0,0.0005452,120]
[320771248,1711552283784,-500.0,0.0005452,120]
[320771249,1711552283793,-500.0,0.0005452,120]
[320771250,1711552283802,-500.0,0.0005452,120]
[320771251,1711552283812,-500.0,0.0005452,120]
[320771252,1711552283822,-500.0,0.0005452,120]
[320771253,1711552283833,-500.0,0.0005452,120]
[320771254,1711552283842,-500.0,0.0005452,120]
[320771255,1711552283852,-272.911968,0.0005452,120]
[320771256,1711552283861,-724.21,0.0005452,120]
[320771257,1711552283870,-500.0,0.0005452,120]
[320771258,1711552283882,-501.77776357,0.0005452,120]
[320771259,1711552283893,-500.0,0.0005452,120]
[320771260,1711552283902,-500.0,0.0005452,120]
[320771261,1711552283912,-512.19,0.0005452,120]
[320771262,1711552283922,-816.48,0.0005452,120]
[320771263,1711552283932,-500.0,0.0005452,120]
[320771264,1711552283942,-500.0,0.0005452,120]
[320771265,1711552283951,-971.05,0.0005452,120]
[320771266,1711552283960,-500.0,0.0005452,120]
[320771267,1711552283970,-500.0,0.0005452,120]
[320771268,1711552283979,-2041.82,0.0005452,120]
[320771269,1711552283989,-500.0,0.0005452,120]
[320771270,1711552283998,-500.0,0.0005452,120]
[320771271,1711552284007,-500.0,0.0005452,120]
[320771272,1711552284017,-500.0,0.0005452,120]
[320771273,1711552284027,-500.0,0.0005452,120]
[320771274,1711552284037,-8032.01,0.0005452,120]
[320771275,1711552284048,-500.0,0.0005452,120]
[320771276,1711552284058,-28254.21,0.0005452,120]
[320771277,1711552284068,-1257.8,0.0005452,120]
[320771278,1711552284077,-500.0,0.0005452,120]
[320771279,1711552284086,-151.0,0.0005452,120]
[320771280,1711552284099,-500.0,0.0005452,120]
[320771281,1711552284109,-534.5,0.0005452,120]
[320771282,1711552284118,-500.0,0.0005452,120]
[320771283,1711552284127,-500.0,0.0005452,120]
[320771284,1711552284137,-1778.61,0.0005452,120]
[320771285,1711552284148,-500.0,0.0005452,120]
[320771286,1711552284157,-2358.28,0.0005452,120]
[320771287,1711552284167,-500.0,0.0005452,120]
[320771288,1711552284176,-215.52844488,0.0005452,120]
[320771289,1711552284186,-500.0,0.0005452,120]
[320771290,1711552284196,-817.58,0.0005452,120]
[320771291,1711552284205,-500.0,0.0005452,120]
[320771292,1711552284214,-500.0,0.0005452,120]
[320771293,1711552284223,-417.0824628,0.0005452,120]
[320771294,1711552284234,-1577.87,0.0005452,120]
[320771295,1711552284243,-500.0,0.0005452,120]
[320771296,1711552284252,-500.0,0.0005452,120]
[320771297,1711552284261,-500.0,0.0005452,120]
[320771298,1711552284271,-500.0,0.0005452,120]
[320771299,1711552284279,-500.0,0.0005452,120]
[320771300,1711552284289,-500.0,0.0005452,120]
[320771301,1711552284299,-609.65,0.0005452,120]
[320771302,1711552284308,-500.0,0.0005452,120]
[320771303,1711552284318,-1757.32,0.0005452,120]
[320771304,1711552284328,-6123.08,0.0005452,120]
[320771305,1711552284338,-500.0,0.0005452,120]
[320771306,1711552284347,-963.44,0.0005452,120]
[320771307,1711552284363,-500.0,0.0005452,120]
[320771308,1711552284372,-500.0,0.0005452,120]
[320771309,1711552284382,-1060.76,0.0005452,120]
[320771310,1711552284391,-503.7745004,0.0005452,120]
[320771311,1711552284401,-15373.14,0.0005452,120]
[320771312,1711552284410,-2729.03,0.0005452,120]
[320771313,1711552284419,-500.0,0.0005452,120]
[320771314,1711552284429,-550.36,0.0005452,120]
[320771315,1711552284438,-500.0,0.0005452,120]
[320771316,1711552284448,-1713.12,0.0005452,120]
[320771317,1711552284458,-500.0,0.0005452,120]
[320771318,1711552284468,-7454.49,0.0005452,120]
[320771319,1711552284477,-500.0,0.0005452,120]
[320771320,1711552284487,-1449.34,0.0005452,120]
[320771321,1711552284496,-665.18,0.0005452,120]
[320771322,1711552284506,-500.0,0.0005452,120]
[320771323,1711552284515,-500.0,0.0005452,120]
[320771324,1711552284525,-1236.95,0.0005452,120]
[320771325,1711552284534,-1011.09,0.0005452,120]
[320771326,1711552284543,-451.82930917,0.0005452,120]
[320771327,1711552284554,-500.0,0.0005452,120]
[320771328,1711552284563,-3183.25,0.0005452,120]
[320771329,1711552284572,-500.0,0.0005452,120]
[320771330,1711552284581,-777.18,0.0005452,120]
[320771331,1711552284591,-1020.56,0.0005452,120]
[320771332,1711552284603,-676.35,0.0005452,120]
[320771333,1711552284613,-500.0,0.0005452,120]
[320771334,1711552284622,-2402.59,0.0005452,120]
[320771335,1711552284631,-500.0,0.0005452,120]
[320771336,1711552284641,-946.71,0.0005452,120]
[320771337,1711552284651,-500.0,0.0005452,120]
[320771338,1711552284660,-600.3,0.0005452,120]
[320771339,1711552284669,-19785.32,0.0005452,120]
[320771340,1711552284679,-500.0,0.0005452,120]
[320771341,1711552284688,-13711.16,0.0005452,120]
[320771342,1711552284697,-500.0,0.0005452,120]
[320771343,1711552284706,-1967.91,0.0005452,120]
[320771344,1711552284715,-521.12,0.0005452,120]
[320771345,1711552284725,-500.0,0.0005452,120]
[320771346,1711552284735,-713.82,0.0005452,120]
[320771347,1711552284744,-500.0,0.0005452,120]
[320771348,1711552284754,-7966.15,0.0005452,120]
[320771349,1711552284764,-2391.95,0.0005452,120]
[320771350,1711552284774,-513.89,0.0005452,120]
[320771351,1711552284783,-250.94843427,0.0005452,120]
[320771352,1711552284793,-1733.83,0.0005452,120]
[320771353,1711552284804,-3864.42,0.0005452,120]
[320771354,1711552284813,-500.0,0.0005452,120]
[320771355,1711552284823,-5021.13,0.0005452,120]
[320771356,1711552284833,-500.0,0.0005452,120]
[320771357,1711552284843,-500.0,0.0005452,120]
[320771358,1711552284853,-3725.84,0.0005452,120]
[320771359,1711552284862,-557.01,0.0005452,120]